bitfinex/quotes_SOLUSD_20250728
["timestamp","ask_amount","ask_price","bid_price","bid_amount"]
[1753661865936,0.03,189.86,189.83,12.60160194]
[1753661866131,0.03,189.86,189.84,7.33383579]
[1753661867027,0.72,189.85,189.81,39.08]
[1753661867228,0.72,189.84,189.81,39.08]
[1753661867419,0.72,189.83,189.81,46.41383579]
[1753661867620,0.75,189.86,189.82,7.33383579]
[1753661867821,0.03,189.86,189.83,7.33383579]
[1753661868124,0.72,189.85,189.81,39.08]
[1753661868316,0.72,189.85,189.81,46.41383579]
[1753661868810,0.72,189.85,189.82,7.33383579]
[1753661869442,0.72,189.84,189.82,7.33383579]
[1753661869827,8.05383579,189.83,189.77,7.33383579]
[1753661870145,0.72,189.82,189.77,7.33383579]
[1753661870437,8.05383579,189.82,189.76,46.43383579]
[1753661870649,0.72,189.81,189.76,39.1]
[1753661870828,0.72,189.8,189.77,7.33383579]
[1753661871614,0.72,189.79,189.77,7.33383579]
[1753661871817,0.72,189.79,189.76,46.43383579]
[1753661873130,0.72,189.79,189.73,7.33383579]
[1753661873131,0.72,189.78,189.73,7.33383579]
[1753661873339,0.72,189.78,189.73,46.39383579]
[1753661873542,5.2689815,189.79,189.74,7.39383579]
[1753661873727,0.72,189.77,189.74,7.39383579]
[1753661875220,5.2689815,189.79,189.74,0.06]
[1753661875221,0.7,189.76,189.74,0.06]
[1753661875657,0.7,189.75,189.74,0.06]
[1753661876620,0.7,189.78,189.74,7.39383579]
[1753661877119,0.7,189.77,189.74,7.39383579]
[1753661877322,13.30255813,189.8,189.74,7.39383579]
[1753661877542,5.96912674,189.79,189.75,7.33383579]
[1753661877748,0.7,189.78,189.77,0.06]
[1753661877955,158.90233688,189.81,189.77,0.06]
[1753661878122,0.7,189.8,189.77,7.39383579]
[1753661878323,146.3,189.81,189.78,7.33383579]
[1753661878626,147.0,189.81,189.78,7.33383579]
[1753661878938,146.3,189.81,189.8,7.33383579]
[1753661879131,152.26754067,189.85,189.8,7.33383579]
[1753661879451,146.3,189.85,189.83,7.33383579]
[1753661879751,147.0,189.85,189.83,7.33383579]
[1753661880050,0.7,189.84,189.82,7.33383579]
[1753661880228,146.3,189.85,189.82,7.33383579]
[1753661880432,146.3,189.85,189.81,44.18839289]
[1753661880433,0.7,189.84,189.81,46.25383579]
[1753661880657,0.7,189.83,189.81,46.25383579]
[1753661881851,0.7,189.82,189.81,38.92]
[1753661882045,0.7,189.82,189.78,46.25383579]
[1753661882250,2.74869954,189.84,189.81,7.33383579]
[1753661882762,3.44869954,189.84,189.81,7.33383579]
[1753661882960,2.74869954,189.84,189.82,7.33383579]
[1753661883167,2.74869954,189.84,189.81,7.33383579]
[1753661883465,0.7,189.83,189.81,7.33383579]
[1753661884029,2.74869954,189.84,189.81,7.33383579]
[1753661884760,3.44869954,189.84,189.81,7.33383579]
[1753661885352,0.7,189.83,189.81,7.33383579]
[1753661886537,2.74869954,189.84,189.81,7.33383579]
[1753661886729,2.74869954,189.84,189.82,7.33383579]
[1753661887244,2.74869954,189.84,189.83,7.33383579]
[1753661887445,147.0,189.85,189.83,7.33383579]
[1753661887955,0.03,189.86,189.84,7.33383579]
[1753661888141,0.03,189.86,189.85,7.33383579]
[1753661889030,0.03,189.86,189.85,6.83383579]
[1753661889733,0.03,189.86,189.85,7.21383579]
[1753661889933,0.03,189.86,189.85,12.48115209]
[1753661890648,0.03,189.86,189.85,12.10115209]
[1753661894224,0.03,189.86,189.8,0.38]
[1753661894430,0.03,189.86,189.85,7.33383579]
[1753661894431,0.73,189.86,189.85,7.33383579]
[1753661894629,0.03,189.86,189.85,7.33383579]
[1753661894857,0.03,189.86,189.85,51.64115209]
[1753661895353,0.03,189.86,189.85,51.26115209]
[1753661895558,0.03,189.86,189.85,45.99383579]
[1753661895761,0.03,189.86,189.85,51.26115209]
[1753661896228,0.03,189.86,189.85,45.99383579]
[1753661896434,0.73,189.86,189.85,45.99383579]
[1753661896845,0.73,189.86,189.85,7.33383579]
[1753661897666,0.03,189.86,189.85,12.60115209]
[1753661898028,0.03,189.86,189.85,12.98115209]
[1753661898642,0.03,189.86,189.85,20.31498788]
[1753661899039,0.03,189.86,189.85,12.98115209]
[1753661900031,0.03,189.86,189.85,20.31498788]
[1753661902040,146.3,189.9,189.85,33.48327863]
[1753661902264,0.7,189.93,189.89,7.33383579]
[1753661902439,0.7,189.93,189.92,7.33383579]
[1753661902851,2.74715485,189.95,189.92,7.33383579]
[1753661903138,0.7,189.93,189.92,7.33383579]
[1753661904578,0.7,189.93,189.9,38.56]
[1753661904791,8.01172805,189.95,189.92,4.49551434]
[1753661905077,2.74715485,189.95,189.92,4.49551434]
[1753661905282,0.66,189.94,189.92,4.49551434]
[1753661905852,5.92500144,189.94,189.9,38.56]
[1753661906174,0.66,189.93,189.9,43.05551434]
[1753661906373,0.66,189.93,189.91,4.49551434]
[1753661906665,0.66,189.92,189.91,4.49551434]
[1753661908452,10.42088923,189.92,189.86,4.49551434]
[1753661908774,0.66,189.91,189.86,4.49551434]
[1753661908980,0.66,189.91,189.87,4.49551434]
[1753661909147,0.66,189.91,189.85,38.46]
[1753661909353,0.66,189.91,189.87,4.49551434]
[1753661909571,0.66,189.9,189.85,38.46]
[1753661909748,5.26516127,189.93,189.85,38.46]
[1753661909749,0.66,189.91,189.89,4.49551434]
[1753661910180,0.66,189.9,189.85,38.46]
[1753661910349,5.15551434,189.9,189.84,4.49551434]
[1753661910551,0.66,189.89,189.85,4.49551434]
[1753661910846,0.66,189.89,189.88,4.49551434]
[1753661911549,2.2891,189.91,189.88,4.49551434]
[1753661911748,0.66,189.91,189.89,4.49551434]
[1753661912194,0.66,189.94,189.9,4.49551434]
[1753661912351,0.66,189.94,189.93,4.49551434]
[1753661913176,2.74715485,189.95,189.93,4.49551434]
[1753661913374,2.74715485,189.95,189.94,4.49551434]
[1753661913555,2.74715485,189.95,189.93,4.49551434]
[1753661914062,0.66,189.94,189.91,4.49551434]
[1753661915165,0.66,189.94,189.9,42.89551434]
[1753661915564,0.66,189.94,189.9,4.49551434]
[1753661915754,8.01177292,189.95,189.9,4.49551434]
[1753661915755,0.66,189.93,189.9,4.49551434]
[1753661915964,0.66,189.92,189.9,4.49551434]
[1753661916164,5.92491857,189.94,189.9,4.49551434]
[1753661916370,0.66,189.92,189.9,4.49551434]
[1753661916976,0.66,189.92,189.87,38.38]
[1753661917186,4.49551434,189.91,189.81,0.38]
[1753661917352,5.15551434,189.9,189.84,4.49551434]
[1753661917548,0.66,189.89,189.85,4.49551434]
[1753661917753,0.66,189.89,189.86,4.49551434]
[1753661918172,0.66,189.88,189.86,4.49551434]
[1753661918983,0.66,189.87,189.85,4.49551434]
[1753661919354,156.06116649,189.91,189.83,38.34]
[1753661919556,0.66,189.86,189.83,42.83551434]
[1753661919865,0.66,189.86,189.84,4.49551434]
[1753661920081,5.26631575,189.89,189.85,4.49551434]
[1753661920385,1.5137,189.9,189.83,38.34]
[1753661920386,0.66,189.88,189.86,4.49551434]
[1753661920748,0.66,189.88,189.85,4.49551434]
[1753661920974,0.66,189.87,189.85,4.49551434]
[1753661921181,0.03,189.86,189.85,4.49551434]
[1753661921384,0.69,189.86,189.84,0.06]
[1753661921761,5.18551434,189.86,189.84,0.06]
[1753661922076,5.2673163,189.85,189.84,0.06]
[1753661922272,5.9273163,189.85,189.84,0.06]
[1753661922590,0.66,189.85,189.84,0.06]
[1753661922762,0.03,189.86,189.84,4.55551434]
[1753661922958,0.03,189.86,189.85,4.49551434]
[1753661924082,0.03,189.86,189.85,9.76283064]
[1753661924255,0.03,189.86,189.85,10.14283064]
[1753661924870,0.03,189.86,189.85,9.76283064]
[1753661925980,0.03,189.86,189.85,4.49551434]
[1753661926578,0.69,189.86,189.84,0.06]
[1753661926791,0.66,189.85,189.84,0.06]
[1753661928076,5.15551434,189.85,189.84,0.06]
[1753661928280,10.42283064,189.85,189.84,0.06]
[1753661929058,27.20751461,189.85,189.84,0.06]
[1753661929286,173.50751461,189.85,189.84,0.06]
[1753661929477,152.2273163,189.85,189.84,0.06]
[1753661930175,146.96,189.85,189.84,0.06]
[1753661930481,152.2273163,189.85,189.84,0.06]
[1753661930860,146.96,189.85,189.84,0.06]
[1753661931261,0.03,189.86,189.84,4.55551434]
[1753661931583,0.69,189.86,189.84,4.55551434]
[1753661932085,0.03,189.86,189.84,4.55551434]
[1753661932256,0.03,189.86,189.85,4.49551434]
[1753661932661,0.03,189.86,189.85,10.14283064]
[1753661932862,0.03,189.86,189.85,12.97564118]
[1753661934063,0.03,189.86,189.85,20.30396606]
[1753661936463,0.03,189.86,189.85,12.97564118]
[1753661940590,0.03,189.86,189.85,20.30396606]
[1753661941169,0.03,189.86,189.85,12.59564118]
[1753661942566,0.03,189.86,189.85,12.97564118]
[1753661942982,0.03,189.86,189.85,12.59564118]
[1753661943804,0.03,189.86,189.85,50.67564118]
[1753661946100,3.44778147,189.93,189.85,71.55225681]
[1753661946404,0.7,189.94,189.92,7.32832488]
[1753661946576,2.74757768,189.94,189.93,7.32832488]
[1753661946979,5.87197166,190.0,189.93,7.32832488]
[1753661947207,2.74696144,189.98,189.97,7.32832488]
[1753661947385,3.44696144,189.98,189.97,7.32832488]
[1753661947589,0.7,190.0,189.97,7.32832488]
[1753661947787,0.7,190.0,189.99,7.32832488]
[1753661948487,1.5408,190.06,189.99,12.59175979]
[1753661948691,5.8055727,190.06,190.04,7.32832488]
[1753661948998,5.8055727,190.06,190.03,7.32832488]
[1753661948999,0.7,190.05,190.03,7.32832488]
[1753661949404,0.7,190.04,190.03,7.32832488]
[1753661949781,4.28667947,190.06,190.03,7.32832488]
[1753661949976,4.28667947,190.06,190.04,7.32832488]
[1753661949977,0.7,190.05,190.04,7.32832488]
[1753661951374,5.96187725,190.05,190.03,7.32832488]
[1753661951575,0.7,190.04,190.03,7.32832488]
[1753661952118,0.7,190.04,190.0,7.32832488]
[1753661952611,5.962129,190.04,190.01,7.32832488]
[1753661952901,0.7,190.03,190.01,7.32832488]
[1753661953080,0.7,190.03,189.99,45.34832488]
[1753661953282,0.7,190.03,190.0,7.32832488]
[1753661953600,0.7,190.03,189.97,38.02]
[1753661953793,0.7,190.03,189.99,7.32832488]
[1753661954108,8.02832488,190.03,189.97,45.34832488]
[1753661954282,0.7,190.02,189.97,45.34832488]
[1753661954482,5.2628809,190.01,189.97,45.34832488]
[1753661954684,0.7,190.0,189.97,7.32832488]
[1753661954883,0.7,189.99,189.97,4.99204373]
[1753661955090,0.7,189.98,189.97,4.99204373]
[1753661956517,5.96376793,189.98,189.95,4.99204373]
[1753661956830,5.96376793,189.98,189.88,13.16592764]
[1753661956831,0.7,189.97,189.89,5.26600478]
[1753661956980,0.7,189.97,189.92,4.99204373]
[1753661957184,0.7,189.96,189.94,4.99204373]
[1753661957491,0.7,189.98,189.95,4.99204373]
[1753661957685,0.7,189.98,189.97,4.99204373]
[1753661957922,0.7,190.0,189.97,4.99204373]
[1753661958223,0.7,190.0,189.98,4.99204373]
[1753661959290,0.7,189.99,189.94,38.02]
[1753661959608,0.7,189.99,189.97,4.99204373]
[1753661959808,5.26295013,190.01,189.97,4.99204373]
[1753661960110,0.7,190.0,189.97,4.99204373]
[1753661960809,5.26263068,190.02,189.98,4.99204373]
[1753661960978,0.7,190.01,189.99,4.99204373]
[1753661961185,0.7,190.0,189.97,4.99204373]
[1753661961397,0.7,189.99,189.96,4.99204373]
[1753661961594,10.25467441,190.02,189.96,4.99204373]
[1753661961889,0.7,189.98,189.96,4.99204373]
[1753661962197,10.25467441,190.02,189.94,38.02]
[1753661962198,0.7,189.97,189.94,43.01204373]
[1753661962397,0.7,189.96,189.94,43.01204373]
[1753661962595,0.7,189.95,189.94,43.01204373]
[1753661962908,0.7,189.98,189.94,43.01204373]
[1753661963112,0.7,189.97,189.95,4.99204373]
[1753661963320,0.7,189.96,189.95,4.99204373]
[1753661963514,0.7,189.98,189.94,38.02]
[1753661963687,0.7,189.96,189.94,43.01204373]
[1753661964011,5.96315789,190.0,189.95,4.99204373]
[1753661964218,0.7,189.99,189.95,4.99204373]
[1753661964386,5.26315789,190.0,189.95,4.99204373]
[1753661964580,0.7,189.98,189.95,4.99204373]
[1753661964808,0.7,189.97,189.95,4.99204373]
[1753661965002,10.25520162,190.0,189.94,43.01204373]
[1753661965203,0.69,189.96,189.94,43.01204373]
[1753661965401,0.69,189.95,189.93,4.99204373]
[1753661965626,4.99204373,189.99,189.93,4.99204373]
[1753661965627,0.69,189.94,189.93,4.99204373]
[1753661965790,18.41911377,190.02,189.93,4.99204373]
[1753661965988,18.41911377,190.02,189.95,4.99204373]
[1753661965989,26.0,189.99,189.95,4.99204373]
[1753661966184,0.69,189.99,189.96,4.99204373]
[1753661966388,5.29260393,190.02,189.98,4.99204373]
[1753661966610,5.29260393,190.02,189.99,4.99204373]
[1753661966912,0.03,190.02,189.99,4.99204373]
[1753661967090,0.69,190.01,189.99,4.99204373]
[1753661967291,0.69,190.0,189.98,4.99204373]
[1753661967492,0.72,190.02,189.98,4.99204373]
[1753661967820,0.72,190.02,190.01,4.99204373]
[1753661967821,0.03,190.02,190.01,4.99204373]
[1753661967995,0.03,190.02,190.01,5.37204373]
[1753661968189,0.03,190.02,190.01,4.99204373]
[1753661968700,0.03,190.02,189.98,38.02]
[1753661968901,0.72,190.02,189.98,38.02]
[1753661969097,0.72,190.02,190.0,4.99204373]
[1753661969294,3.46591257,190.02,190.0,4.99204373]
[1753661969599,0.03,190.01,190.0,4.99204373]
[1753661970120,0.03,190.01,190.0,5.37204373]
[1753661970417,2.775975,190.01,190.0,4.99204373]
[1753661971292,0.03,190.01,190.0,4.99204373]
[1753661972496,0.03,190.01,190.0,5.37204373]
[1753661972891,0.03,190.01,190.0,10.63520162]
[1753661973534,0.03,190.01,190.0,15.62724535]
[1753661975516,0.03,190.01,190.0,48.63520162]
[1753661976206,0.03,190.01,190.0,53.62724535]
[1753661977123,0.69,190.13,190.06,4.99204373]
[1753661977430,2.74491107,190.11,190.1,4.99204373]
[1753661977928,3.43491107,190.11,190.1,4.99204373]
[1753661978298,3.43491107,190.11,190.09,4.99204373]
[1753661978497,0.69,190.1,190.09,4.99204373]
[1753661978912,0.69,190.1,190.08,4.99204373]
[1753661979128,2.74491107,190.11,190.09,4.99204373]
[1753661979329,3.43491107,190.11,190.09,4.99204373]
[1753661980135,2.74491107,190.11,190.09,4.99204373]
[1753661980428,3.43491107,190.11,190.09,4.99204373]
[1753661981127,3.43491107,190.11,190.1,4.99204373]
[1753661981629,3.43491107,190.11,190.09,4.99204373]
[1753661982396,0.69,190.1,190.09,4.99204373]
[1753661982817,2.74491107,190.11,190.09,4.99204373]
[1753661983021,2.74491107,190.11,190.1,4.99204373]
[1753661983208,0.69,190.13,190.1,4.99204373]
[1753661983408,2.74462715,190.14,190.12,4.99204373]
[1753661983709,2.74462715,190.14,190.1,5.26032017]
[1753661983710,2.74462715,190.14,190.13,4.99204373]
[1753661984336,5.94821727,190.18,190.13,4.99204373]
[1753661984507,2.74421381,190.16,190.15,4.99204373]
[1753661985203,9.29123016,190.19,190.15,4.99204373]
[1753661985204,0.69,190.19,190.15,4.99204373]
[1753661985511,3.43399414,190.18,190.16,4.99204373]
[1753661985711,2.74399414,190.18,190.16,4.99204373]
[1753661986016,2.74399414,190.18,190.17,4.99204373]
[1753661986930,3.43399414,190.18,190.16,4.99204373]
[1753661987728,2.74399414,190.18,190.17,4.99204373]
[1753661988115,0.69,190.22,190.17,4.99204373]
[1753661988324,0.69,190.22,190.19,4.99204373]
[1753661988325,2.7434727,190.2,190.19,4.99204373]
[1753661988724,2.7434727,190.2,190.15,0.38]
[1753661988906,3.4334727,190.2,190.15,0.38]
[1753661989108,2.7434727,190.2,190.19,4.99204373]
[1753661990021,2.7434727,190.2,190.16,5.25866834]
[1753661990341,0.69,190.26,190.19,4.99204373]
[1753661990642,0.69,190.25,190.21,4.99204373]
[1753661990814,0.69,190.24,190.21,4.99204373]
[1753661991015,0.69,190.23,190.21,4.99204373]
[1753661991220,2.74295363,190.26,190.16,5.25866834]
[1753661991221,0.69,190.25,190.22,4.99204373]
[1753661991441,0.69,190.25,190.21,4.99204373]
[1753661991643,0.69,190.24,190.21,4.99204373]
[1753661991942,0.69,190.24,190.22,4.99204373]
[1753661992115,2.74295363,190.26,190.23,4.99204373]
[1753661992320,0.69,190.25,190.23,4.99204373]
[1753661992744,0.69,190.25,190.22,4.99204373]
[1753661993043,0.69,190.24,190.22,4.99204373]
[1753661993246,0.69,190.25,190.22,4.99204373]
[1753661993540,2.74295363,190.26,190.24,4.99204373]
[1753661993743,3.43295363,190.26,190.23,4.99204373]
[1753661993915,0.69,190.25,190.23,4.99204373]
[1753661994342,0.69,190.25,190.2,5.63759262]
[1753661994519,0.69,190.25,190.23,4.99204373]
[1753661994711,2.74295363,190.26,190.23,4.99204373]
[1753661995039,8.66899719,190.26,190.23,4.99204373]
[1753661995230,7.99899719,190.26,190.22,4.99204373]
[1753661995437,2.74295363,190.26,190.24,4.99204373]
[1753661995643,0.03,190.27,190.23,4.99204373]
[1753661995833,0.03,190.27,190.22,0.38]
[1753661995834,2.74256702,190.26,190.22,0.38]
[1753661996139,2.74256702,190.26,190.2,5.25757391]
[1753661996140,3.41256702,190.26,190.21,4.99204373]
[1753661996343,3.41256702,190.26,190.19,0.52578999]
[1753661996344,5.66204373,190.25,190.19,4.99204373]
[1753661996641,5.66204373,190.24,190.17,6.91059739]
[1753661996830,2.74256702,190.26,190.17,1.6522]
[1753661997034,0.67,190.25,190.18,4.99204373]
[1753661997342,2.74256702,190.26,190.23,4.99204373]
[1753661997542,2.74256702,190.26,190.23,5.37204373]
[1753661997928,2.74256702,190.26,190.22,4.99204373]
[1753661998130,4.99204373,190.23,190.18,5.37204373]
[1753661998513,4.99204373,190.24,190.19,0.38]
[1753661998712,4.99204373,190.24,190.19,4.99204373]
[1753661999026,4.99204373,190.21,190.15,4.99204373]
[1753661999235,5.66204373,190.21,190.15,4.99204373]
[1753661999423,5.66204373,190.23,190.17,4.99204373]
[1753661999620,4.99204373,190.24,190.18,4.99204373]
[1753661999820,4.99204373,190.24,190.19,4.99204373]
[1753662000159,3.41256702,190.26,190.2,0.38]
[1753662000160,2.74256702,190.26,190.2,0.38]
[1753662000442,5.66204373,190.25,190.19,4.99204373]
[1753662000944,2.74256702,190.26,190.18,5.25817641]
[1753662001148,2.74256702,190.26,190.24,4.99204373]
[1753662001863,2.74256702,190.26,190.21,2.05173471]
[1753662002029,30.99204373,190.22,190.14,4.992044]
[1753662002360,4.99204373,190.15,190.14,4.992044]
[1753662002531,5.66204373,190.15,190.14,4.992044]
[1753662003028,11.90304373,190.15,190.14,3.552044]
[1753662003236,0.67,190.15,190.14,3.552044]
[1753662003452,5.66204373,190.15,190.14,3.552044]
[1753662003747,4.99204373,190.15,190.14,3.552044]
[1753662003953,5.25900604,190.15,190.1,0.68]
[1753662004448,5.25900604,190.15,190.02,13.49516665]
[1753662004449,4.99204373,190.11,190.02,13.49516665]
[1753662004629,4.99204373,190.07,190.02,0.68]
[1753662004838,4.99204373,190.07,189.97,58.19980104]
[1753662004839,5.66204373,190.1,189.99,5.26338782]
[1753662005035,4.99204373,190.05,190.0,0.68]
[1753662005232,4.99204373,190.05,190.01,0.68]
[1753662005747,4.99204373,190.02,189.97,0.68]
[1753662005923,4.99204373,190.02,189.96,10.2562755]
[1753662006136,4.99204373,190.02,189.97,0.68]
[1753662006336,50.35088855,190.1,189.98,5.67204373]
[1753662006555,43.72012453,190.11,190.03,4.99204373]
[1753662006728,51.03533262,190.11,190.05,7.31520809]
[1753662006934,38.46,190.11,190.08,7.31520809]
[1753662007158,26.0,190.16,190.1,7.31520809]
[1753662007336,7.31520809,190.16,190.1,7.31520809]
[1753662007536,38.46,190.17,190.11,7.31520809]
[1753662007733,38.46,190.17,190.13,7.31520809]
[1753662007955,38.46,190.17,190.13,7.99520809]
[1753662008249,0.67,190.21,190.14,7.99520809]
[1753662008651,5.25730904,190.22,190.15,7.31520809]
[1753662008940,12.57251713,190.22,190.16,7.31520809]
[1753662009264,12.57251713,190.22,190.16,7.99520809]
[1753662009475,12.57251713,190.22,190.11,0.52601125]
[1753662009476,38.46,190.23,190.19,7.31520809]
[1753662009779,38.46,190.23,190.2,0.68]
[1753662009962,3.41256702,190.26,190.21,7.99520809]
[1753662009963,7.99853936,190.26,190.21,7.99520809]
[1753662010168,7.99853936,190.26,190.21,7.31520809]
[1753662010330,7.99854392,190.26,190.22,0.68]
[1753662010536,8.02854392,190.26,190.22,0.68]
[1753662010940,2.77256702,190.26,190.22,0.68]
[1753662011139,8.02866649,190.26,190.22,0.68]
[1753662012054,2.77256702,190.26,190.23,7.99520809]
[1753662012242,2.77256702,190.26,190.24,0.68]
[1753662012435,2.77256702,190.26,190.25,0.68]
[1753662012638,2.77256702,190.26,190.22,0.68]
[1753662012840,8.02859261,190.26,190.22,7.99520809]
[1753662013052,8.02859261,190.26,190.18,5.25817646]
[1753662013053,8.02859261,190.26,190.21,7.31520809]
[1753662013359,8.02859261,190.26,190.19,0.68]
[1753662013360,2.77256702,190.26,190.23,7.31520809]
[1753662013569,2.77256702,190.26,190.24,7.99520809]
[1753662013766,2.77256702,190.26,190.25,7.99520809]
[1753662014149,2.77256702,190.26,190.24,7.31520809]
[1753662014347,2.77256702,190.26,190.24,7.99520809]
[1753662015073,2.77256702,190.26,190.25,7.99520809]
[1753662017169,2.77256702,190.26,190.25,13.25144987]
[1753662019657,8.69856126,190.26,190.18,0.68]
[1753662019858,7.31520809,190.22,190.15,0.68]
[1753662020152,0.67,190.24,190.16,7.31520809]
[1753662020357,0.67,190.24,190.17,7.31520809]
[1753662020550,0.67,190.24,190.13,5.25928903]
[1753662020551,2.743006,190.21,190.13,5.25928903]
[1753662020861,2.743006,190.21,190.11,44.9131]
[1753662020862,0.67,190.24,190.17,7.31520809]
[1753662021177,2.74308436,190.2,190.16,0.68]
[1753662021397,7.31520809,190.21,190.16,0.68]
[1753662021683,13.1699138,190.26,190.17,0.68]
[1753662021684,2.74314371,190.19,190.17,0.68]
[1753662021870,2.74314371,190.19,190.18,7.31520809]
[1753662022065,0.03,190.26,190.18,7.99520809]
[1753662022266,0.03,190.26,190.21,7.31520809]
[1753662022476,2.74253519,190.25,190.22,0.68]
[1753662022663,2.74253519,190.25,190.18,0.68]
[1753662022866,0.67,190.24,190.18,0.68]
[1753662023061,0.67,190.24,190.19,7.31520809]
[1753662023377,2.74253519,190.25,190.21,7.31520809]
[1753662023580,2.74253519,190.25,190.22,7.99520809]
[1753662023880,2.74253519,190.25,190.19,0.68]
[1753662024081,3.41253519,190.25,190.2,7.31520809]
[1753662024454,2.74253519,190.25,190.21,7.31520809]
[1753662024763,2.74253519,190.25,190.23,7.31520809]
[1753662025693,2.74253519,190.25,190.23,8.01520809]
[1753662025850,2.74253519,190.25,190.24,8.01520809]
[1753662026267,2.74253519,190.25,190.23,7.31520809]
[1753662026481,2.74253519,190.25,190.22,7.31520809]
[1753662027781,2.74253519,190.25,190.23,8.01520809]
[1753662028554,2.74253519,190.25,190.24,8.01520809]
[1753662028751,0.03,190.26,190.24,0.7]
[1753662028978,0.03,190.26,190.25,8.01520809]
[1753662029182,0.03,190.26,190.25,7.31520809]
[1753662029754,0.03,190.26,190.25,13.27144987]
[1753662029970,8.03520809,190.26,190.19,0.7]
[1753662030177,0.72,190.26,190.19,8.01520809]
[1753662030357,0.03,190.26,190.22,7.31520809]
[1753662030553,0.03,190.26,190.22,8.01520809]
[1753662030957,0.03,190.26,190.23,0.7]
[1753662031163,0.03,190.26,190.22,7.31520809]
[1753662031366,0.03,190.26,190.22,8.01520809]
[1753662031673,0.03,190.26,190.21,7.31520809]
[1753662031875,0.03,190.26,190.21,12.57240599]
[1753662032074,0.03,190.26,190.22,8.01520809]
[1753662032387,0.03,190.26,190.24,7.31520809]
[1753662032764,0.03,190.26,190.24,8.01520809]
[1753662033398,0.03,190.26,190.24,5.95628519]
[1753662033797,0.03,190.26,190.24,13.27149328]
[1753662034572,0.03,190.26,190.25,0.7]
[1753662035172,0.03,190.26,190.23,8.01520809]
[1753662035370,0.03,190.26,190.23,13.27192967]
[1753662035570,0.03,190.26,190.24,8.01520809]
[1753662037002,0.03,190.26,190.24,7.31520809]
[1753662037176,0.03,190.26,190.24,8.01520809]
[1753662037378,0.03,190.26,190.24,7.31520809]
[1753662037674,0.03,190.26,190.24,8.01520809]
[1753662038086,0.03,190.26,190.25,7.31520809]
[1753662038292,0.03,190.26,190.25,8.01520809]
[1753662038998,0.03,190.26,190.25,13.27144987]
[1753662040901,0.03,190.26,190.23,0.52567944]
[1753662041102,8.03520809,190.26,190.21,5.25732831]
[1753662041398,8.00520809,190.25,190.2,5.25762355]
[1753662041573,0.03,190.26,190.21,0.7]
[1753662041772,0.03,190.26,190.23,7.31520809]
[1753662042403,0.03,190.26,190.2,18.40168243]
[1753662042615,0.03,190.26,190.23,7.31520809]
[1753662043104,0.03,190.26,190.24,8.01520809]
[1753662043405,0.03,190.26,190.25,7.31520809]
[1753662043709,0.03,190.26,190.24,7.31520809]
[1753662044183,0.03,190.26,190.23,12.57197222]
[1753662044586,0.03,190.26,190.25,7.31520809]
[1753662044991,0.03,190.26,190.25,8.01520809]
[1753662045307,0.03,190.26,190.25,13.27144987]
[1753662047910,0.842,190.3,190.25,13.27144987]
[1753662048083,0.842,190.3,190.29,7.31520809]
[1753662048286,0.842,190.3,190.29,8.01520809]
[1753662049394,0.842,190.3,190.29,13.27034498]
[1753662050704,2.74098777,190.34,190.29,33.72339531]
[1753662050903,7.2092,190.42,190.33,7.31520809]
[1753662051116,7.2092,190.42,190.34,39.34]
[1753662051317,2.74043003,190.41,190.39,7.31520809]
[1753662051519,3.43043003,190.41,190.34,38.64]
[1753662051702,0.69,190.4,190.35,7.31520809]
[1753662051905,0.69,190.39,190.36,7.31520809]
[1753662052108,0.69,190.39,190.37,7.31520809]
[1753662052623,0.69,190.39,190.36,7.31520809]
[1753662053424,0.69,190.39,190.37,7.31520809]
[1753662053807,2.74043003,190.41,190.37,7.31520809]
[1753662054007,3.43043003,190.41,190.37,7.31520809]
[1753662054209,2.74043003,190.41,190.38,7.31520809]
[1753662054525,2.74043003,190.41,190.35,5.95348043]
[1753662054707,2.74043003,190.41,190.39,7.31520809]